bitfinex/quotes_BTCUSD_20240727
["timestamp","ask_amount","ask_price","bid_price","bid_amount"]
[1722053182786,1.02512866,67952.0,67951.0,0.44554482]
[1722053183025,1.31945366,67952.0,67951.0,0.323254]
[1722053184024,1.38595366,67952.0,67951.0,0.323254]
[1722053184229,1.3628626,67952.0,67951.0,0.323254]
[1722053185226,1.37167713,67952.0,67951.0,0.323254]
[1722053187210,1.39476955,67952.0,67951.0,0.323254]
[1722053187466,1.43890377,67952.0,67951.0,0.323254]
[1722053187683,1.34049682,67952.0,67951.0,0.323254]
[1722053189381,1.2963626,67952.0,67951.0,0.323254]
[1722053190638,1.36264593,67952.0,67951.0,0.323254]
[1722053190987,1.38573797,67952.0,67951.0,0.323254]
[1722053192148,1.36264593,67952.0,67951.0,0.323254]
[1722053193680,1.36265987,67952.0,67951.0,0.323254]
[1722053195406,1.38575191,67952.0,67951.0,0.323254]
[1722053195733,1.36265987,67952.0,67951.0,0.323254]
[1722053196208,1.2963626,67952.0,67951.0,0.323254]
[1722053199063,1.31945464,67952.0,67951.0,0.323254]
[1722053200260,1.2963626,67952.0,67951.0,0.323254]
[1722053203370,1.2943626,67952.0,67951.0,0.323254]
[1722053204983,1.2963626,67952.0,67951.0,0.323254]
[1722053207526,1.31945464,67952.0,67951.0,0.323254]
[1722053207675,1.2963626,67952.0,67951.0,0.323254]
[1722053210939,1.31945464,67952.0,67951.0,0.323254]
[1722053211787,1.2963626,67952.0,67951.0,0.323254]
[1722053212127,0.7057126,67952.0,67951.0,0.467554]
[1722053213095,1.0000376,67952.0,67951.0,0.467554]
[1722053213302,0.7057126,67952.0,67951.0,0.467554]
[1722053213841,0.70664052,67952.0,67951.0,0.467554]
[1722053214343,0.74990395,67952.0,67951.0,0.5898538]
[1722053214623,0.70686868,67952.0,67951.0,0.5898538]
[1722053214918,0.7057126,67952.0,67951.0,0.5898538]
[1722053215927,0.70666841,67952.0,67951.0,0.5898538]
[1722053216255,0.7057126,67952.0,67951.0,0.5898538]
[1722053217472,0.7057126,67952.0,67951.0,0.467554]
[1722053217680,0.7057126,67952.0,67951.0,0.58984966]
[1722053219469,0.72880464,67952.0,67951.0,0.58984966]
[1722053220372,0.50673601,67952.0,67951.0,0.58984966]
[1722053220604,0.02393204,67952.0,67951.0,0.58984966]
[1722053220846,0.02512177,67952.0,67951.0,0.58984611]
[1722053221319,0.00202973,67952.0,67951.0,0.58984611]
[1722053221991,0.19919173,67952.0,67951.0,0.58984611]
[1722053222195,0.198002,67952.0,67951.0,0.58984611]
[1722053222399,0.148002,67952.0,67951.0,0.58984611]
[1722053222668,0.1491764,67952.0,67951.0,0.58984611]
[1722053222891,0.0020144,67952.0,67951.0,0.58984611]
[1722053223105,0.00084,67952.0,67951.0,0.58984611]
[1722053223488,0.148002,67952.0,67951.0,0.58984491]
[1722053223625,0.1995562,67952.0,67951.0,0.58984491]
[1722053223825,0.148002,67952.0,67951.0,0.58984491]
[1722053224020,0.14946628,67952.0,67951.0,0.58984491]
[1722053224221,0.148002,67952.0,67951.0,0.58984491]
[1722053224598,0.1721866,67952.0,67951.0,0.58984491]
[1722053224798,0.17109387,67952.0,67951.0,0.58984491]
[1722053225536,0.17264807,67952.0,67951.0,0.58984491]
[1722053225731,0.148002,67952.0,67951.0,0.58984491]
[1722053225937,0.00084,67952.0,67951.0,0.58984491]
[1722053226513,0.0023593,67952.0,67951.0,0.58984491]
[1722053226716,0.0023593,67952.0,67951.0,0.467554]
[1722053226923,0.00084,67952.0,67951.0,0.58984484]
[1722053227127,0.19894378,67952.0,67951.0,0.58984484]
[1722053227803,0.198002,67952.0,67951.0,0.58984484]
[1722053228013,0.19920916,67952.0,67951.0,0.58984484]
[1722053228219,0.148002,67952.0,67951.0,0.58984484]
[1722053228397,0.00084,67952.0,67951.0,0.58984484]
[1722053228598,0.00190137,67952.0,67951.0,0.58984484]
[1722053228804,0.02393187,67952.0,67951.0,0.58984484]
[1722053230153,0.02393187,67952.0,67951.0,0.467554]
[1722053230316,0.02393187,67952.0,67951.0,0.58984464]
[1722053231598,0.02393187,67952.0,67951.0,0.60984464]
[1722053233449,0.02393187,67952.0,67951.0,0.60984211]
[1722053234258,0.00084,67952.0,67951.0,0.60984211]
[1722053234687,0.00220338,67952.0,67951.0,0.59584211]
[1722053234889,0.00084,67952.0,67951.0,0.59584211]
[1722053235092,0.00084,67952.0,67951.0,0.60984211]
[1722053235361,0.00170927,67952.0,67951.0,0.60984211]
[1722053235591,0.00084,67952.0,67951.0,0.60984211]
[1722053235830,0.0023942,67952.0,67951.0,0.60984211]
[1722053236068,0.00084,67952.0,67951.0,0.60984211]
[1722053236291,0.0023942,67952.0,67951.0,0.59584211]
[1722053236510,0.00084,67952.0,67951.0,0.59584211]
[1722053236632,0.00231027,67952.0,67951.0,0.59584211]
[1722053236893,0.00084,67952.0,67951.0,0.59584211]
[1722053237527,0.00194165,67952.0,67951.0,0.60984211]
[1722053237746,0.00084,67952.0,67951.0,0.60984211]
[1722053237981,0.0023942,67952.0,67951.0,0.60984211]
[1722053238203,0.00084,67952.0,67951.0,0.60984211]
[1722053238447,0.0023942,67952.0,67951.0,0.60984211]
[1722053238680,0.00084,67952.0,67951.0,0.60984211]
[1722053238919,0.02542444,67952.0,67951.0,0.60984211]
[1722053239144,0.05084,67952.0,67951.0,0.60984211]
[1722053240256,0.05084,67952.0,67951.0,0.60984286]
[1722053242001,0.07393187,67952.0,67951.0,0.60984286]
[1722053242204,0.02393187,67952.0,67951.0,0.60984286]
[1722053243117,0.00084,67952.0,67951.0,0.60984286]
[1722053243543,0.00084,67952.0,67951.0,0.487554]
[1722053243748,0.00084,67952.0,67951.0,0.60984177]
[1722053247798,0.02393179,67952.0,67951.0,0.60984177]
[1722053247974,0.00084,67952.0,67951.0,0.60984177]
[1722053248413,0.05084,67952.0,67951.0,0.60984177]
[1722053248617,0.00084,67952.0,67951.0,0.60984177]
[1722053250222,0.00084,67952.0,67951.0,0.487554]
[1722053250419,0.00084,67952.0,67951.0,0.60984481]
[1722053250941,0.02393183,67952.0,67951.0,0.60984481]
[1722053251498,0.00084,67952.0,67951.0,0.60984481]
[1722053251905,0.0023942,67952.0,67951.0,0.60984481]
[1722053252234,0.00084,67952.0,67951.0,0.60984481]
[1722053252948,0.00084,67952.0,67951.0,0.59584481]
[1722053253643,0.00084,67952.0,67951.0,0.60984239]
[1722053254775,0.02393177,67952.0,67951.0,0.60984239]
[1722053255010,0.00084,67952.0,67951.0,0.60984239]
[1722053255235,0.00084,67952.0,67951.0,0.59584239]
[1722053256808,0.00084,67952.0,67951.0,0.473554]
[1722053257016,0.00084,67952.0,67951.0,0.6098425]
[1722053258042,0.02393177,67952.0,67951.0,0.6098425]
[1722053258483,0.00084,67952.0,67951.0,0.6098425]
[1722053261013,0.00084,67952.0,67951.0,0.8335065]
[1722053261837,0.02393161,67952.0,67951.0,0.8335065]
[1722053263439,0.02393161,67952.0,67951.0,0.8195065]
[1722053263683,0.02393161,67952.0,67951.0,0.8195062]
[1722053263940,0.02393161,67952.0,67951.0,1.1278352]
[1722053264189,0.02393161,67952.0,67951.0,1.1433452]
[1722053264434,0.02393161,67952.0,67951.0,1.1573452]
[1722053264928,0.02393161,67952.0,67951.0,1.1433452]
[1722053265175,0.02393161,67952.0,67951.0,1.1573452]
[1722053265623,0.02393161,67952.0,67951.0,1.1433452]
[1722053265854,0.02393161,67952.0,67951.0,1.1573452]
[1722053266430,0.02393161,67952.0,67951.0,1.1433452]
[1722053266656,0.02393161,67952.0,67951.0,1.1573452]
[1722053267112,0.02393161,67952.0,67951.0,1.15734113]
[1722053267792,0.00084,67952.0,67951.0,1.15734113]
[1722053268245,0.01715697,67955.0,67952.0,0.147162]
[1722053268478,0.00105974,67954.0,67953.0,0.44611413]
[1722053268746,0.01715697,67955.0,67953.0,0.59327413]
[1722053268981,0.01715697,67955.0,67954.0,0.15179413]
[1722053269208,0.01715697,67955.0,67954.0,0.44611413]
[1722053270782,0.01715697,67955.0,67954.0,0.61571413]
[1722053271265,0.04024816,67955.0,67954.0,0.61571413]
[1722053271490,0.01715697,67955.0,67954.0,0.61571413]
[1722053273736,0.01715697,67955.0,67954.0,0.49343]
[1722053273936,0.01715697,67955.0,67954.0,0.61571412]
[1722053274613,0.04024807,67955.0,67954.0,0.61571412]
[1722053274781,0.01715697,67955.0,67954.0,0.61571412]
[1722053275258,0.2392256,67955.0,67954.0,0.53731412]
[1722053275605,0.2392256,67955.0,67954.0,0.41503]
[1722053275812,0.2392256,67955.0,67954.0,0.5373141]
[1722053276212,0.2392256,67955.0,67954.0,0.4741141]
[1722053276421,0.2400656,67955.0,67954.0,0.4741141]
[1722053277205,0.2400656,67955.0,67954.0,0.47411428]
[1722053279467,0.26315674,67955.0,67954.0,0.47411428]
[1722053279676,0.2400656,67955.0,67954.0,0.47411428]
[1722053279899,0.3872216,67955.0,67954.0,0.46011428]
[1722053280121,0.2400656,67955.0,67954.0,0.46011428]
[1722053280346,0.2400656,67955.0,67954.0,0.47411428]
[1722053280555,0.2400656,67955.0,67954.0,0.46011428]
[1722053280769,0.2400656,67955.0,67954.0,0.47411428]
[1722053282465,0.3872216,67955.0,67954.0,0.47411428]
[1722053282680,0.41031274,67955.0,67954.0,0.47411428]
[1722053283067,0.26315674,67955.0,67954.0,0.35183]
[1722053283262,0.26315674,67955.0,67954.0,0.47411428]
[1722053283852,0.2400656,67955.0,67954.0,0.47411428]
[1722053286465,0.2400656,67955.0,67954.0,0.35183]
[1722053286659,0.2400656,67955.0,67954.0,0.47411428]
[1722053286820,0.2400656,67955.0,67954.0,0.46011428]
[1722053287020,0.26315677,67955.0,67954.0,0.46011428]
[1722053287670,0.26315677,67955.0,67954.0,0.44611428]
[1722053287866,0.41031277,67955.0,67954.0,0.32383]
[1722053288104,0.26315677,67955.0,67954.0,0.33783]
[1722053288311,0.2400656,67955.0,67954.0,0.33783]
[1722053288987,0.2400656,67955.0,67954.0,0.35183]
[1722053290237,0.2400656,67955.0,67954.0,0.32232]
[1722053290454,0.2400656,67955.0,67954.0,0.44460431]
[1722053290652,0.2416198,67955.0,67954.0,0.44460431]
[1722053291169,0.2416198,67955.0,67954.0,0.32232]
[1722053291423,0.26471097,67955.0,67954.0,0.32232]
[1722053291840,0.26471097,67955.0,67954.0,0.44460428]
[1722053292071,0.41031277,67955.0,67954.0,0.44460428]
[1722053293636,0.41031277,67955.0,67954.0,0.32232]
[1722053293866,0.41031277,67955.0,67954.0,0.44460463]
[1722053295024,0.26315677,67955.0,67954.0,0.44460463]
[1722053295241,0.26471097,67955.0,67954.0,0.44460463]
[1722053295516,0.26471097,67955.0,67954.0,0.32232]
[1722053295724,0.26471097,67955.0,67954.0,0.43060463]
[1722053295938,0.26315677,67955.0,67954.0,0.44460463]
[1722053296156,0.26438005,67955.0,67954.0,0.44460463]
[1722053296343,0.26315677,67955.0,67954.0,0.43060463]
[1722053296679,0.26315677,67955.0,67954.0,0.44460463]
[1722053297368,0.2400656,67955.0,67954.0,0.44460463]
[1722053297589,0.24129479,67955.0,67954.0,0.44460463]
[1722053297811,0.2400656,67955.0,67954.0,0.44460463]
[1722053298033,0.24117526,67955.0,67954.0,0.44460463]
[1722053298257,0.2400656,67955.0,67954.0,0.44460463]
[1722053298480,0.24117065,67955.0,67954.0,0.44460463]
[1722053298697,0.2400656,67955.0,67954.0,0.44460463]
[1722053298917,0.24116606,67955.0,67954.0,0.44460463]
[1722053299151,0.2400656,67955.0,67954.0,0.44460463]
[1722053299383,0.24116135,67955.0,67954.0,0.32232]
[1722053299614,0.2400656,67955.0,67954.0,0.44460463]
[1722053300352,0.3872216,67955.0,67954.0,0.44460463]
[1722053300978,0.41031281,67955.0,67954.0,0.44460463]
[1722053301401,0.3872216,67955.0,67954.0,0.44460463]
[1722053302964,0.3872216,67955.0,67954.0,0.57970463]
[1722053304518,0.41031281,67955.0,67954.0,0.57970463]
[1722053305773,0.3872216,67955.0,67954.0,0.57970463]
[1722053306433,0.3872216,67955.0,67954.0,0.57970461]
[1722053307638,0.3872216,67955.0,67954.0,0.58062861]
[1722053308896,0.02393124,67955.0,67954.0,1.24886218]
[1722053309585,0.02393124,67955.0,67954.0,1.54317818]
[1722053309808,0.02393124,67955.0,67954.0,1.54316896]
[1722053310038,0.00084,67955.0,67954.0,1.54316896]
[1722053313140,0.00084,67955.0,67954.0,1.24885296]
[1722053314761,0.00084,67955.0,67954.0,1.54316896]
[1722053316335,0.00084,67955.0,67954.0,1.42089357]
[1722053316537,0.00084,67955.0,67954.0,1.54316294]
[1722053316774,0.00084,67955.0,67954.0,1.42089357]
[1722053316964,0.00084,67955.0,67954.0,1.5431629]
[1722053317697,0.00084,67955.0,67954.0,1.8982533]
[1722053317907,0.02392884,67955.0,67954.0,1.8982533]
[1722053318523,0.00084,67955.0,67954.0,1.8982533]
[1722053319751,0.00084,67955.0,67954.0,1.89824668]
[1722053319994,0.00084,67955.0,67954.0,1.90707838]
[1722053320442,0.00084,67955.0,67954.0,2.07843103]
[1722053320852,0.00084,67955.0,67954.0,2.1225869]
[1722053321255,0.00084,67955.0,67954.0,2.07843103]
[1722053321653,0.02392776,67955.0,67954.0,2.07843103]
[1722053322816,0.00084,67955.0,67954.0,2.07843103]
[1722053323042,0.00084,67955.0,67954.0,2.10793103]
[1722053323262,0.00084,67955.0,67954.0,2.10790147]
[1722053323813,0.00084,67955.0,67954.0,2.09390147]
[1722053324034,0.00084,67955.0,67954.0,2.07990147]
[1722053324269,0.00084,67955.0,67954.0,2.09390147]
[1722053324478,0.00084,67955.0,67954.0,2.10790147]
[1722053326142,0.02392738,67955.0,67954.0,1.93657093]
[1722053326349,0.00084,67955.0,67954.0,1.93657093]
[1722053326544,0.00084,67955.0,67954.0,1.93657092]
[1722053327172,0.00084,67955.0,67954.0,2.23088692]
[1722053327347,0.00084,67955.0,67954.0,1.93657092]
[1722053328412,0.00084,67955.0,67954.0,2.23088692]
[1722053328610,0.00084,67955.0,67954.0,1.93657092]
[1722053329792,0.02392738,67955.0,67954.0,1.93657092]
[1722053329959,0.00084,67955.0,67954.0,1.93657252]
[1722053333228,0.00084,67955.0,67954.0,1.81431567]
[1722053333439,0.02392761,67955.0,67954.0,1.93657706]
[1722053333633,0.00084,67955.0,67954.0,1.93657706]
[1722053336754,0.00084,67955.0,67954.0,1.93657704]
[1722053337853,0.02392761,67955.0,67954.0,1.93657704]
[1722053340225,0.02392761,67955.0,67954.0,1.93657816]
[1722053340892,0.00084,67955.0,67954.0,1.93657816]
[1722053341796,0.00084,67955.0,67954.0,1.42998776]
[1722053342013,0.07994,67955.0,67954.0,1.07557176]
[1722053342435,0.07994,67955.0,67954.0,0.78125576]
[1722053342654,0.07994,67955.0,67954.0,0.73549327]
[1722053342866,0.07994,67955.0,67954.0,1.15208222]
[1722053343072,0.07994,67955.0,67954.0,0.85776622]
[1722053343304,0.14484,67955.0,67954.0,0.85776622]
[1722053343546,0.14484,67955.0,67954.0,1.15208222]
[1722053343757,0.14484,67955.0,67954.0,1.15202514]
[1722053343979,0.16792846,67955.0,67954.0,1.15202514]
[1722053344183,0.10302846,67955.0,67954.0,1.15202514]
[1722053345040,0.10302846,67955.0,67954.0,0.71055114]
[1722053345249,0.10302846,67955.0,67954.0,0.85770914]
[1722053346132,0.10302846,67955.0,67954.0,0.72143619]
[1722053346332,0.10302846,67955.0,67954.0,0.82970911]
[1722053346540,0.10302846,67955.0,67954.0,0.85770911]
[1722053348064,0.10302846,67955.0,67954.0,0.71055111]
[1722053349339,0.07994,67955.0,67954.0,0.85770911]
[1722053349552,0.07994,67955.0,67954.0,0.8577091]
[1722053352372,0.02392837,67955.0,67954.0,0.8577091]
[1722053352780,0.02392837,67955.0,67954.0,0.72143619]
[1722053352983,0.02392837,67955.0,67954.0,0.84370911]
[1722053353224,0.00084,67955.0,67954.0,0.82970911]
[1722053353347,0.00084,67955.0,67954.0,0.84370911]
[1722053353569,0.00084,67955.0,67954.0,0.85770911]
[1722053353778,0.00084,67955.0,67954.0,0.82970911]
[1722053353983,0.00084,67955.0,67954.0,0.70743619]
[1722053354187,0.00084,67955.0,67954.0,0.8577091]
[1722053354641,0.00084,67955.0,67954.0,0.7105511]
[1722053355017,0.00084,67955.0,67954.0,0.8577091]
[1722053356122,0.02392829,67955.0,67954.0,0.8577091]
[1722053356339,0.02392829,67955.0,67954.0,0.85770911]
[1722053357616,0.00084,67955.0,67954.0,0.85770911]
[1722053359565,0.00084,67955.0,67954.0,0.73543619]
[1722053359765,0.00084,67955.0,67954.0,0.8577091]
[1722053360176,0.00084,67955.0,67954.0,0.9223091]
[1722053361426,0.00084,67955.0,67954.0,0.8577091]
[1722053363230,0.00084,67955.0,67954.0,0.85771128]
[1722053364804,0.02392816,67955.0,67954.0,0.85771128]
[1722053365186,0.00084,67955.0,67954.0,0.85771128]
[1722053366394,0.00084,67955.0,67954.0,0.73543619]
[1722053366599,0.00084,67955.0,67954.0,0.85771115]
[1722053368214,0.02392816,67955.0,67954.0,0.85771115]
[1722053369291,0.00084,67955.0,67954.0,0.93581115]
[1722053369498,0.00084,67955.0,67954.0,1.00041115]
[1722053371548,0.00084,67955.0,67954.0,0.92231115]
[1722053372971,0.00084,67955.0,67954.0,0.85771115]
[1722053376761,0.02392816,67955.0,67954.0,0.85771074]
[1722053376989,0.00084,67955.0,67954.0,0.85771074]
[1722053378996,0.00084,67955.0,67954.0,1.21632674]
[1722053379197,0.00084,67955.0,67954.0,1.29292674]
[1722053379947,0.02392807,67955.0,67954.0,1.17065219]
[1722053380161,0.02392807,67955.0,67954.0,1.29292612]
[1722053381072,0.02392807,67955.0,67954.0,1.94233252]
[1722053381278,0.00084,67955.0,67954.0,1.94233252]
[1722053381719,0.00084,67955.0,67954.0,2.11382472]
[1722053382073,0.00084,67955.0,67954.0,1.64801652]
[1722053383386,0.00084,67955.0,67954.0,1.64801116]
[1722053385217,0.00084,67955.0,67954.0,1.64801039]
[1722053386854,0.00084,67955.0,67954.0,1.51174259]
[1722053387059,0.00084,67955.0,67954.0,1.62001049]
[1722053387263,0.00084,67955.0,67954.0,1.63401049]
[1722053388476,0.00084,67955.0,67954.0,1.64801049]
[1722053388681,0.00084,67955.0,67954.0,1.66201049]
[1722053389141,0.02392761,67955.0,67954.0,1.64801049]
[1722053389565,0.00084,67955.0,67954.0,1.64801049]
[1722053389792,0.00084,67955.0,67954.0,1.62007912]
[1722053390010,0.00084,67955.0,67954.0,1.63407912]
[1722053390496,0.00084,67955.0,67954.0,1.63407923]
[1722053392885,0.02392761,67955.0,67954.0,1.63407923]
[1722053393695,0.02392761,67955.0,67954.0,1.51181122]
[1722053393898,0.02392761,67955.0,67954.0,1.63407923]
[1722053394327,0.00084,67955.0,67954.0,1.63407923]
[1722053397005,0.00084,67955.0,67954.0,1.51181122]
[1722053397206,0.00084,67955.0,67954.0,1.63407922]
[1722053400333,0.00084,67955.0,67954.0,1.51181122]
[1722053400526,0.00084,67955.0,67954.0,1.63407932]
[1722053401692,0.02392774,67955.0,67954.0,1.63407932]
[1722053402826,0.02392774,67955.0,67954.0,1.51181122]
[1722053403028,0.02392774,67955.0,67954.0,1.63407883]
[1722053403249,0.02392774,67955.0,67954.0,1.33976283]
[1722053405122,0.02392774,67955.0,67954.0,1.63407883]
[1722053406266,0.00084,67955.0,67954.0,1.63407883]
[1722053406676,0.00084,67955.0,67954.0,1.51181122]
[1722053406897,0.00084,67955.0,67954.0,1.6340793]
[1722053407694,0.00084,67955.0,67954.0,1.63407932]
[1722053408814,0.00084,67955.0,67954.0,1.66201069]
[1722053413279,0.00084,67955.0,67954.0,1.66201058]
[1722053413861,0.02392757,67955.0,67954.0,1.66201058]
[1722053415115,0.00084,67955.0,67954.0,1.66201058]
[1722053415435,0.00084,67955.0,67954.0,1.63407921]
[1722053415658,0.00084,67955.0,67954.0,1.62007921]
[1722053415900,0.00084,67955.0,67954.0,1.59207921]
[1722053416128,0.00084,67955.0,67954.0,1.60607921]
[1722053416352,0.00084,67955.0,67954.0,1.62007921]
[1722053416594,0.00084,67955.0,67954.0,1.60607921]
[1722053416833,0.00084,67955.0,67954.0,1.62007921]
[1722053419679,0.02392761,67955.0,67954.0,1.62007921]
[1722053420107,0.00084,67955.0,67954.0,1.62007922]
[1722053423314,0.0239276,67955.0,67954.0,1.49781122]
[1722053423522,0.0239276,67955.0,67954.0,1.62007922]
[1722053423731,0.0239276,67955.0,67954.0,1.64801059]
[1722053426393,0.0239276,67955.0,67954.0,1.69218535]
[1722053426780,0.0239276,67955.0,67954.0,1.69218533]
[1722053427110,0.0239276,67955.0,67954.0,1.98650133]
[1722053430202,0.0239276,67955.0,67954.0,1.98651918]
[1722053430577,0.0239276,67955.0,67954.0,2.15972442]
[1722053431141,0.0239276,67955.0,67954.0,2.11553313]
[1722053431657,0.00084,67955.0,67954.0,2.11553313]
[1722053434959,0.02392755,67955.0,67954.0,2.11553313]
[1722053436148,0.00084,67955.0,67954.0,2.11553313]
[1722053437120,0.00084,67955.0,67954.0,2.52997276]
[1722053437529,0.00084,67955.0,67954.0,2.79706918]
[1722053437734,0.00084,67955.0,67954.0,2.90750492]
[1722053438555,0.00084,67955.0,67954.0,2.79706918]
[1722053440144,0.00084,67955.0,67954.0,3.09136889]
[1722053440372,0.00084,67955.0,67954.0,3.1913453]
[1722053441009,0.00084,67955.0,67954.0,3.1773453]
[1722053441222,0.00084,67956.0,67955.0,1.8463904]
[1722053441423,0.00084,67956.0,67955.0,2.77930468]
[1722053441588,0.00084,67956.0,67955.0,3.07367468]
[1722053441944,0.00076,67970.0,67969.0,1.059378]
[1722053442162,0.00076,67970.0,67969.0,1.84011276]
[1722053443011,0.00076,67970.0,67969.0,1.85411276]
[1722053443645,0.00076,67970.0,67969.0,1.85408758]
[1722053443646,0.02384383,67970.0,67969.0,1.85408758]
[1722053443823,0.00076,67970.0,67969.0,1.85408758]
[1722053444221,0.00076,67970.0,67969.0,1.86808758]
[1722053446263,0.00076,67970.0,67969.0,1.92886198]
[1722053447027,0.00076,67970.0,67969.0,1.92886152]
[1722053447223,0.02384334,67970.0,67969.0,1.92886152]
[1722053447443,0.02384334,67970.0,67969.0,1.91486152]
[1722053447645,0.02384334,67970.0,67969.0,1.92886152]
[1722053448553,0.00076,67970.0,67969.0,1.92886152]
[1722053449176,0.00076,67970.0,67969.0,1.91486152]
[1722053449436,0.00076,67970.0,67969.0,1.85236152]
[1722053449587,0.00076,67970.0,67969.0,1.92886152]
[1722053450383,0.00076,67970.0,67969.0,1.92886258]
[1722053451712,0.02384338,67970.0,67969.0,1.92886258]
[1722053453890,0.02384338,67970.0,67969.0,1.92886164]
[1722053454133,0.00076,67970.0,67969.0,1.92886164]
[1722053455272,0.00076,67970.0,67969.0,1.93768543]
[1722053457087,0.00076,67970.0,67969.0,1.81544576]
[1722053457315,0.00076,67970.0,67969.0,1.93768541]
[1722053457316,0.02384338,67970.0,67969.0,1.93768541]
[1722053458460,0.00076,67970.0,67969.0,1.93768541]
[1722053461643,0.02384338,67970.0,67969.0,1.93768541]
[1722053462994,0.02384338,67970.0,67969.0,1.81544576]
[1722053463218,0.00076,67970.0,67969.0,1.93768541]
[1722053464084,0.00076,67970.0,67969.0,2.23193641]
[1722053466404,0.00076,67970.0,67969.0,2.23193617]
[1722053466628,0.02384338,67970.0,67969.0,2.23193617]
[1722053466832,0.00076,67970.0,67969.0,2.23193617]
[1722053469720,0.00076,67970.0,67969.0,2.40615104]
[1722053469893,0.00076,67970.0,67969.0,2.40614035]
[1722053470096,0.02384293,67970.0,67969.0,2.40614035]
[1722053471138,0.02384293,67970.0,67969.0,2.46725501]
[1722053471336,0.00076,67970.0,67969.0,2.46725501]
[1722053472495,0.00076,67970.0,67969.0,2.40614035]
[1722053473301,0.00076,67970.0,67969.0,2.40634482]
[1722053473958,0.00076,67970.0,67969.0,2.39234482]
[1722053474607,0.02384298,67970.0,67969.0,2.10969676]
[1722053474911,0.00076,67970.0,67969.0,2.10969676]
[1722053476574,0.00076,67970.0,67969.0,2.40645502]
[1722053478218,0.02384276,67970.0,67969.0,2.40645502]
[1722053478415,0.00076,67970.0,67969.0,2.40655523]
[1722053480466,0.00076,67970.0,67969.0,2.45059297]
[1722053481225,0.00076,67970.0,67969.0,2.40655523]
[1722053481422,0.00076,67970.0,67969.0,2.45059297]
[1722053481675,0.00076,67970.0,67969.0,2.45033728]
[1722053482510,0.00076,67970.0,67969.0,2.40627804]
[1722053483126,0.02384306,67970.0,67969.0,2.40627804]
[1722053483335,0.00076,67970.0,67969.0,2.40627804]
[1722053484415,0.00076,67970.0,67969.0,2.47236691]
[1722053485213,0.00076,67970.0,67969.0,2.47380534]
[1722053485428,0.00076,67970.0,67969.0,2.80019046]
[1722053488556,0.00076,67970.0,67969.0,2.50220434]
[1722053488917,0.00076,67970.0,67969.0,2.80012444]
[1722053489123,0.00076,67970.0,67969.0,2.47373932]
[1722053489788,0.02384309,67970.0,67969.0,2.47373932]
[1722053490115,0.00076,67970.0,67969.0,2.47373932]
[1722053491490,0.00076,67970.0,67969.0,2.17948832]
[1722053491686,0.08186,67970.0,67969.0,2.02005293]
[1722053491938,0.08186,67970.0,67969.0,1.97607029]
[1722053492178,0.00076,67970.0,67969.0,1.80027989]
[1722053493497,0.0238436,67970.0,67969.0,1.80027989]
[1722053494542,0.00076,67970.0,67969.0,1.80027989]
[1722053495380,0.00076,67970.0,67969.0,1.80028144]
[1722053496373,0.00076,67970.0,67969.0,1.97575614]
[1722053497788,0.02384338,67970.0,67969.0,1.97575614]
[1722053498004,0.02384338,67970.0,67969.0,2.02726522]
[1722053498343,0.00076,67970.0,67969.0,2.0198526]
[1722053498678,0.00076,67970.0,67969.0,1.85466197]
[1722053498884,0.00076,67970.0,67969.0,2.02099425]
[1722053500049,0.00076,67970.0,67969.0,1.97689535]
[1722053500495,0.00076,67970.0,67969.0,2.05899535]
[1722053501551,0.02384338,67970.0,67969.0,2.05899535]
[1722053501754,0.00076,67970.0,67969.0,2.05899535]
[1722053502167,0.00076,67970.0,67969.0,2.05910333]
[1722053502956,0.00076,67970.0,67969.0,2.11125207]
[1722053503385,0.00076,67970.0,67969.0,2.09725207]
[1722053504150,0.00076,67970.0,67969.0,2.11125207]
[1722053504354,0.00076,67970.0,67969.0,2.12525207]
[1722053504589,0.00076,67970.0,67969.0,2.11125207]
[1722053505191,0.00076,67970.0,67969.0,2.12525207]
[1722053505555,0.00076,67970.0,67969.0,1.8262945]
[1722053505755,0.00076,67970.0,67969.0,2.12529871]
[1722053505953,0.00076,67970.0,67969.0,1.94852914]
[1722053506185,0.00076,67970.0,67969.0,2.1252917]
[1722053506996,0.00076,67970.0,67969.0,2.12527969]
[1722053507532,0.00076,67970.0,67969.0,2.45167286]
[1722053509062,0.00076,67970.0,67969.0,2.05912833]
[1722053509280,0.0238433,67970.0,67969.0,2.45167774]
[1722053509628,0.00076,67970.0,67969.0,2.45167774]
[1722053511356,0.00076,67970.0,67969.0,2.38552151]
[1722053512618,0.00076,67970.0,67969.0,2.3855215]
[1722053512935,0.0238433,67970.0,67969.0,2.3855215]
[1722053514227,0.00076,67970.0,67969.0,2.3855215]
[1722053515928,0.00076,67970.0,67969.0,2.08653893]
[1722053516125,0.00076,67970.0,67969.0,2.38497947]
[1722053516711,0.00076,67970.0,67969.0,2.3570481]
[1722053516911,0.00076,67970.0,67969.0,2.38497947]
[1722053518091,0.00076,67970.0,67969.0,2.44557947]
[1722053520984,0.02384312,67970.0,67969.0,2.44557947]
[1722053521185,0.00076,67970.0,67969.0,2.44557947]
[1722053521615,0.00076,67970.0,67969.0,2.59492159]
[1722053521964,0.00076,67970.0,67969.0,2.53795685]
[1722053522173,0.00076,67970.0,67969.0,2.5990714]
[1722053525275,0.00076,67970.0,67969.0,2.53799727]
[1722053525474,0.00076,67970.0,67969.0,2.59911171]
[1722053526243,0.00076,67970.0,67969.0,2.51088263]
[1722053528817,0.02384299,67970.0,67969.0,2.33047541]
[1722053529022,0.02384299,67970.0,67969.0,2.51087647]
[1722053529196,0.00076,67970.0,67969.0,2.51087647]
[1722053532116,0.00076,67970.0,67969.0,1.82074576]
[1722053532325,0.00076,67970.0,67969.0,2.51090114]
[1722053532528,0.0238432,67970.0,67969.0,2.51090114]
[1722053533603,0.00076,67970.0,67969.0,2.51090114]
[1722053533747,0.00076,67970.0,67969.0,2.49690114]
[1722053534198,0.00076,67970.0,67969.0,2.51090114]
[1722053534400,0.00076,67970.0,67969.0,2.49690114]
[1722053534556,0.00076,67970.0,67969.0,2.51090114]
[1722053535220,0.00076,67970.0,67969.0,2.49690114]
[1722053535420,0.00076,67970.0,67969.0,2.04828594]
[1722053535622,0.00076,67970.0,67969.0,2.51381928]
[1722053536661,0.00076,67970.0,67969.0,1.8818602]
[1722053536875,0.02384328,67970.0,67969.0,2.45270483]
[1722053537072,0.02384328,67970.0,67969.0,2.51381932]
[1722053537288,0.00076,67970.0,67969.0,2.51381932]
[1722053539040,0.00076,67970.0,67969.0,1.88186025]
[1722053539179,0.00076,67970.0,67969.0,2.45270484]
[1722053539385,0.00076,67970.0,67969.0,2.51381933]
[1722053540646,0.02384324,67970.0,67969.0,2.51381933]